bitfinex-derivatives/quotes_SOLF0:USTF0_20250829
["timestamp","ask_amount","ask_price","bid_price","bid_amount"]
[1756438806273,2.46552433,216.61,216.58,7.2936298]
[1756438806480,7.29,216.62,216.58,7.2936298]
[1756438806681,2.46531484,216.61,216.58,7.2936298]
[1756438806878,7.29,216.62,216.58,7.2936298]
[1756438807077,2.46531484,216.61,216.58,7.2936298]
[1756438807282,7.29,216.62,216.58,7.2936298]
[1756438807478,2.46510993,216.61,216.58,7.2936298]
[1756438807781,7.29,216.62,216.58,7.2936298]
[1756438807980,2.46509089,216.61,216.58,7.2936298]
[1756438808178,7.29,216.66,216.58,0.0336298]
[1756438808481,2.46476918,216.65,216.59,7.39]
[1756438808675,9.86916832,216.66,216.59,7.39]
[1756438808676,9.75476918,216.64,216.59,7.39]
[1756438808877,2.46476918,216.63,216.58,0.0336298]
[1756438809072,7.29,216.65,216.58,0.0336298]
[1756438809276,2.46450325,216.64,216.58,7.4236298]
[1756438809471,2.46450325,216.63,216.59,7.39]
[1756438809672,7.29,216.65,216.59,7.39]
[1756438809879,9.75431042,216.64,216.59,7.39]
[1756438810081,7.29,216.62,216.58,0.0336298]
[1756438810775,2.57916832,216.63,216.58,0.0336298]
[1756438810977,7.29,216.61,216.58,0.0336298]
[1756438811281,2.46403886,216.62,216.58,0.0336298]
[1756438811282,310.32,216.69,216.58,0.0336298]
[1756438811478,2.57916832,216.64,216.58,0.0336298]
[1756438811677,7.29,216.62,216.58,7.4236298]
[1756438814485,128.55,216.68,216.59,7.39]
[1756438814685,2.57916832,216.66,216.59,7.39]
[1756438814886,2.46306866,216.65,216.59,7.39]
[1756438815087,2.46306866,216.64,216.59,7.39]
[1756438815287,7.29,216.65,216.58,0.0336298]
[1756438815484,2.4629209,216.64,216.58,0.0336298]
[1756438815787,7.29,216.65,216.58,0.0336298]
[1756438815988,2.46289223,216.64,216.58,0.0336298]
[1756438816287,7.29,216.65,216.58,7.4236298]
[1756438816487,9.75280521,216.64,216.58,7.4236298]
[1756438816786,7.29,216.62,216.58,7.4236298]
[1756438816987,7.29,216.65,216.58,7.4236298]
[1756438817188,2.46282423,216.64,216.58,7.4236298]
[1756438817389,9.75282423,216.63,216.58,7.4236298]
[1756438817683,7.29,216.63,216.58,7.4236298]
[1756438817986,7.29,216.65,216.58,7.4236298]
[1756438818185,2.46276606,216.64,216.58,7.4236298]
[1756438818386,9.75276606,216.63,216.58,7.4236298]
[1756438818587,7.29,216.63,216.58,7.4236298]
[1756438819083,7.29,216.65,216.58,7.4236298]
[1756438819291,2.46296612,216.64,216.58,0.0336298]
[1756438819486,7.29,216.62,216.58,0.0336298]
[1756438819687,2.57916832,216.63,216.58,0.0336298]
[1756438819985,7.29,216.61,216.58,0.0336298]
[1756438820381,2.57916832,216.62,216.58,0.0336298]
[1756438820586,7.29,216.6,216.58,0.0336298]
[1756438821278,2.57916832,216.65,216.58,0.0336298]
[1756438821479,2.46399683,216.64,216.58,0.0336298]
[1756438821679,2.46399683,216.63,216.59,7.39]
[1756438821885,2.46399683,216.62,216.59,7.39]
[1756438822086,9.86916832,216.65,216.59,7.39]
[1756438822288,2.46410429,216.64,216.58,0.0336298]
[1756438822480,2.46410429,216.63,216.59,7.39]
[1756438822684,2.46410429,216.62,216.59,7.39]
[1756438822885,2.57916832,216.66,216.59,7.39]
[1756438823184,2.46522779,216.65,216.59,7.39]
[1756438823389,9.75522779,216.64,216.59,7.39]
[1756438823589,2.46522779,216.63,216.59,7.39]
[1756438823789,7.29,216.64,216.59,7.39]
[1756438824084,2.46641549,216.63,216.59,7.39]
[1756438824289,2.46644374,216.62,216.58,7.4236298]
[1756438824483,7.29,216.6,216.58,0.0336298]
[1756438824888,2.46808589,216.59,216.58,0.0336298]
[1756438825094,9.75808589,216.59,216.58,0.0336298]
[1756438826891,9.75808589,216.59,216.58,2.98e-05]
[1756438829394,9.76353135,216.59,216.58,2.98e-05]
[1756438830196,9.76342545,216.59,216.58,2.98e-05]
[1756438831792,10.22342545,216.59,216.46,5.00761598]
[1756438831996,9.86916832,216.53,216.45,5.00761598]
[1756438832198,2.47342545,216.52,216.44,5.00761598]
[1756438832397,2.47342545,216.51,216.44,5.00761598]
[1756438832693,9.86916832,216.53,216.44,5.00761598]
[1756438832892,2.473697,216.52,216.45,7.39]
[1756438833093,0.03386895,216.5,216.44,5.00761598]
[1756438833591,0.03386895,216.5,216.45,7.39]
[1756438833799,0.03386895,216.5,216.44,5.00761598]
[1756438834595,0.03386895,216.5,216.44,7.39]
[1756438834795,0.03386895,216.5,216.44,12.39761598]
[1756438836200,0.03386895,216.5,216.44,7.39]
[1756438844102,9.57916832,216.49,216.41,7.39]
[1756438845002,0.0326554,216.47,216.41,7.39]
[1756438846409,0.0326554,216.47,216.44,7.39]
[1756438847301,0.0326554,216.47,216.43,2.57916832]
[1756438847698,7.0,216.58,216.46,9.96916832]
[1756438847903,7.0,216.58,216.51,7.39]
[1756438849102,7.0,216.58,216.52,0.03459517]
[1756438853906,5.04571307,216.57,216.52,0.03459517]
[1756438854103,7.0,216.55,216.52,0.03459517]
[1756438854408,9.46654475,216.54,216.46,7.39]
[1756438854608,7.0,216.54,216.51,0.03371975]
[1756438854903,2.57916832,216.57,216.51,0.03371975]
[1756438855108,2.46696329,216.56,216.51,0.03371975]
[1756438855305,2.46696329,216.55,216.51,0.03371975]
[1756438855506,7.0,216.53,216.51,0.03371975]
[1756438855710,7.0,216.56,216.51,0.03371975]
[1756438856008,9.57916832,216.54,216.51,0.03371975]
[1756438856304,7.0,216.52,216.51,0.03371975]
[1756438856508,9.4671842,216.52,216.42,7.39]
[1756438856708,7.0,216.52,216.49,0.03020361]
[1756438856909,2.57916832,216.54,216.49,0.03020361]
[1756438857109,7.0,216.52,216.49,0.03020361]
[1756438857309,2.57916832,216.54,216.49,0.03020361]
[1756438857504,2.46736229,216.53,216.49,0.03020361]
[1756438857708,7.0,216.51,216.49,0.03020361]
[1756438857909,2.57916832,216.54,216.49,0.03020361]
[1756438858110,2.46736247,216.53,216.49,0.03020361]
[1756438858302,2.46736247,216.52,216.49,0.03020361]
[1756438858506,7.0,216.53,216.49,0.03020361]
[1756438858809,13.86,216.58,216.49,0.03020361]
[1756438858810,7.0,216.5,216.49,0.03020361]
[1756438861007,9.57916832,216.5,216.4,5.00761598]
[1756438861211,7.0,216.48,216.39,5.00761598]
[1756438861408,7.0,216.48,216.38,5.00761598]
[1756438863311,0.03151087,216.45,216.38,5.00761598]
[1756438863716,0.03151087,216.45,216.41,7.39]
[1756438863915,0.03151087,216.45,216.4,7.5867843]
[1756438864108,0.03151087,216.45,216.41,5.00761598]
[1756438864616,0.03151087,216.45,216.42,7.39]
[1756438864811,0.03151087,216.45,216.41,5.00761598]
[1756438865507,0.03151087,216.45,216.42,7.39]
[1756438865708,0.03151087,216.45,216.4,5.00761598]
[1756438865906,0.03151087,216.45,216.41,7.39]
[1756438866316,7.57151087,216.45,216.41,7.39]
[1756438866707,0.03151087,216.45,216.39,7.5867843]
[1756438866912,0.03151087,216.45,216.4,5.00761598]
[1756438867214,0.03151087,216.45,216.39,2.57916832]
[1756438867215,0.03151087,216.45,216.43,7.09]
[1756438867417,0.03151087,216.45,216.42,7.5867843]
[1756438868011,0.03151087,216.45,216.43,7.09]
[1756438869613,0.03151087,216.45,216.41,7.09]
[1756438869917,0.03151087,216.45,216.44,7.09]
[1756438870315,0.03151087,216.45,216.44,7.55]
[1756438870616,55.56,216.59,216.45,7.09]
[1756438870617,7.54,216.59,216.45,7.09]
[1756438870818,2.47079376,216.58,216.49,7.09]
[1756438871019,2.47079376,216.57,216.49,7.09]
[1756438871212,7.54,216.59,216.49,7.09]
[1756438871412,2.47080642,216.58,216.49,7.09]
[1756438871616,7.54,216.59,216.49,7.09]
[1756438871920,2.47072418,216.58,216.52,0.03253381]
[1756438872119,7.54,216.57,216.52,7.12253381]
[1756438872614,2.57916832,216.61,216.52,7.12253381]
[1756438872815,2.47040098,216.6,216.52,7.12253381]
[1756438873016,2.47040098,216.59,216.52,7.09]
[1756438873210,2.47040098,216.58,216.52,7.09]
[1756438873517,7.54,216.6,216.54,0.03429187]
[1756438873717,2.47012574,216.59,216.54,0.03429187]
[1756438873912,7.54,216.62,216.55,7.09]
[1756438874113,2.46929298,216.61,216.55,7.09]
[1756438874318,3.38281707,216.7,216.52,2.57916832]
[1756438874511,7.54,216.63,216.56,0.03477936]
[1756438874716,2.46925682,216.62,216.56,0.03477936]
[1756438875020,7.54,216.61,216.56,7.09]
[1756438875214,7.54,216.61,216.57,0.03536775]
[1756438876316,2.57916832,216.64,216.57,0.03536775]
[1756438876515,10.00766316,216.63,216.57,0.03536775]
[1756438876718,2.46766316,216.62,216.57,0.03536775]
[1756438876919,7.54,216.64,216.57,0.03536775]
[1756438877118,2.46769163,216.63,216.57,0.03536775]
[1756438877421,2.46769163,216.62,216.57,0.03536775]
[1756438877616,7.54,216.65,216.58,7.09]
[1756438877815,2.46692335,216.64,216.58,7.09]
[1756438878121,2.46692335,216.63,216.57,0.03536775]
[1756438878327,7.54,216.64,216.57,0.03536775]
[1756438878617,2.46623801,216.63,216.54,2.57916832]
[1756438878820,7.54,216.64,216.58,0.0353431]
[1756438879023,2.46622583,216.63,216.58,0.0353431]
[1756438879212,7.54,216.65,216.58,0.0353431]
[1756438879416,2.46561346,216.64,216.58,0.0353431]
[1756438879616,7.54,216.62,216.58,0.0353431]
[1756438879916,7.54,216.65,216.58,0.0353431]
[1756438880116,2.46561346,216.64,216.58,0.0353431]
[1756438880316,2.46561346,216.63,216.58,0.0353431]
[1756438880520,7.54,216.65,216.58,0.0353431]
[1756438880720,2.46505274,216.64,216.58,0.0353431]
[1756438880921,7.54,216.65,216.58,0.0353431]
[1756438881123,2.46504057,216.64,216.58,0.0353431]
[1756438881420,7.54,216.65,216.58,0.0353431]
[1756438881620,2.46447399,216.64,216.58,0.0353431]
[1756438881816,7.54,216.65,216.58,0.0353431]
[1756438882018,2.46447399,216.64,216.58,0.0353431]
[1756438882218,7.54,216.65,216.58,0.0353431]
[1756438882421,2.46396397,216.64,216.58,0.0353431]
[1756438882615,7.54,216.65,216.58,0.0353431]
[1756438882821,2.46396397,216.64,216.58,0.0353431]
[1756438883021,7.54,216.65,216.58,2.61451142]
[1756438883227,7.54,216.69,216.59,7.09]
[1756438883419,2.46298815,216.68,216.59,9.66916832]
[1756438883726,7.54,216.69,216.59,9.66916832]
[1756438883925,2.46304025,216.68,216.59,9.66916832]
[1756438884126,7.54,216.69,216.61,0.03279995]
[1756438886424,7.54,216.67,216.61,0.03279995]
[1756438886627,2.46028058,216.66,216.61,0.03279995]
[1756438886825,7.54,216.68,216.61,0.03279995]
[1756438887020,2.46049245,216.67,216.61,0.03279995]
[1756438887219,2.46049245,216.66,216.61,0.03279995]
[1756438887420,7.54,216.68,216.61,0.03279995]
[1756438887616,2.4601926,216.67,216.61,0.03279995]
[1756438887823,7.54,216.68,216.61,0.03279995]
[1756438889122,119.12,216.72,216.61,0.03279995]
[1756438889123,2.57916832,216.66,216.61,0.03279995]
[1756438889322,7.54,216.65,216.61,0.03279995]
[1756438889821,2.57916832,216.66,216.61,0.03279995]
[1756438890627,7.54,216.65,216.61,0.03279995]
[1756438890831,7.54,216.65,216.61,7.12279995]
[1756438891120,10.11916832,216.69,216.61,7.12279995]
[1756438893525,10.11916832,216.69,216.61,0.03279995]
[1756438893826,119.08,216.73,216.61,0.03279995]
[1756438893827,2.57916832,216.66,216.61,0.03279995]
[1756438894428,119.08,216.73,216.61,0.03279995]
[1756438894624,2.57916832,216.67,216.61,0.03279995]
[1756438894826,2.45116417,216.66,216.61,0.03279995]
[1756438895025,2.57916832,216.67,216.61,0.03279995]
[1756438895225,2.45091605,216.66,216.61,0.03279995]
[1756438895427,2.57916832,216.67,216.61,0.03279995]
[1756438895626,2.45102196,216.66,216.61,0.03279995]
[1756438895830,7.54,216.66,216.61,0.03279995]
[1756438896125,2.57916832,216.67,216.61,0.03279995]
[1756438896323,7.64,216.65,216.61,0.03279995]
[1756438896523,2.57916832,216.67,216.61,0.03279995]
[1756438896726,7.64,216.66,216.61,0.03279995]
[1756438896921,2.57916832,216.67,216.61,0.03279995]
[1756438897226,7.64,216.66,216.61,0.03279995]
[1756438897630,2.57916832,216.67,216.61,0.03279995]
[1756438897832,7.64,216.65,216.61,0.03279995]
[1756438898032,2.57916832,216.67,216.61,0.03279995]
[1756438898227,2.45064412,216.66,216.61,0.03279995]
[1756438898432,2.45074151,216.65,216.61,0.03279995]
[1756438898633,7.64,216.66,216.61,0.03279995]
[1756438898937,2.45074211,216.65,216.61,0.03279995]
[1756438899132,7.64,216.66,216.61,0.03279995]
[1756438899339,7.64,216.64,216.61,0.03279995]
[1756438899537,2.57916832,216.67,216.61,0.03279995]
[1756438899740,2.45084598,216.66,216.61,0.03279995]
[1756438899940,7.64,216.64,216.61,0.03279995]
[1756438900139,2.57916832,216.67,216.61,0.03279995]
[1756438900341,2.45096887,216.66,216.61,0.03279995]
[1756438900639,2.45096887,216.65,216.61,0.03279995]
[1756438900939,2.57916832,216.67,216.61,0.03279995]
[1756438901139,2.45096887,216.66,216.61,0.03279995]
[1756438901341,7.64,216.64,216.61,0.03279995]
[1756438901536,2.57916832,216.67,216.61,0.03279995]
[1756438901737,2.45134538,216.66,216.61,0.03279995]
[1756438901942,7.64,216.64,216.61,0.03279995]
[1756438902140,2.57916832,216.67,216.61,0.03279995]
[1756438902341,2.45155569,216.66,216.61,0.03279995]
[1756438902538,2.57916832,216.67,216.61,0.03279995]
[1756438902539,7.64,216.64,216.61,0.03279995]
[1756438902737,7.64,216.66,216.61,0.03279995]
[1756438902938,7.64,216.64,216.61,0.03279995]
[1756438903237,2.57916832,216.67,216.61,0.03279995]
[1756438903439,2.45222401,216.66,216.61,0.03279995]
[1756438903641,2.45222401,216.65,216.61,0.03279995]
[1756438903839,7.64,216.66,216.61,0.03279995]
[1756438904036,7.64,216.64,216.61,0.03279995]
[1756438904241,2.57916832,216.67,216.61,0.03279995]
[1756438904438,7.64,216.65,216.61,0.03279995]
[1756438904739,7.64,216.66,216.61,0.03279995]
[1756438904943,7.64,216.64,216.61,0.03279995]
[1756438905244,2.57916832,216.67,216.61,0.03279995]
[1756438905445,2.45293158,216.66,216.61,0.03279995]
[1756438905739,2.45293158,216.65,216.61,0.03279995]
[1756438906044,2.57916832,216.64,216.61,0.03279995]
[1756438906844,7.64,216.63,216.61,0.03279995]
[1756438907142,2.57916832,216.64,216.61,0.03279995]
[1756438907342,7.64,216.63,216.61,0.03279995]
[1756438907535,7.64,216.62,216.61,9.995e-05]
[1756438907845,10.09500723,216.62,216.51,7.65]
[1756438908045,10.21916832,216.59,216.51,7.65]
[1756438909345,0.03033421,216.57,216.51,7.65]
[1756438909644,0.03033421,216.57,216.55,2.57916832]
[1756438909948,2.57916832,216.67,216.56,7.65]
[1756438910151,2.45647335,216.66,216.56,7.65]
[1756438910445,0.02957386,216.58,216.55,2.57916832]
[1756438910640,2.57916832,216.67,216.56,7.65]
[1756438910836,2.45718099,216.66,216.56,7.65]
[1756438911034,0.03197437,216.59,216.56,7.65]
[1756438911443,2.57916832,216.67,216.56,7.65]
[1756438911746,0.0292885,216.6,216.56,7.65]
[1756438911941,0.0292885,216.6,216.55,2.57916832]
[1756438912148,0.0292885,216.6,216.56,7.65]
[1756438912343,0.0292885,216.6,216.55,7.71385055]
[1756438912645,0.0292885,216.6,216.56,7.65]
[1756438912845,7.6692885,216.6,216.56,7.65]
[1756438913144,0.0292885,216.6,216.53,7.65]
[1756438914748,7.6692885,216.6,216.53,7.65]
[1756438915344,2.4646726,216.59,216.53,7.65]
[1756438915548,7.6692885,216.6,216.53,7.65]
[1756438915750,2.46468475,216.59,216.53,7.65]
[1756438915953,7.6692885,216.6,216.53,7.65]
[1756438916151,2.46468506,216.59,216.53,7.65]
[1756438916355,7.6692885,216.6,216.53,7.65]
[1756438916648,2.46507794,216.59,216.53,7.65]
[1756438916853,2.46514217,216.58,216.53,7.65]
[1756438917052,7.64,216.58,216.53,7.65]
[1756438918253,10.105433,216.57,216.5,5.13468223]
[1756438918453,2.465433,216.56,216.48,12.78468223]
[1756438918648,2.465433,216.55,216.48,7.65]
[1756438918850,7.64,216.57,216.5,7.65]
[1756438919050,0.03263138,216.54,216.5,7.65]
[1756438919250,0.03263138,216.54,216.52,15.36385055]
[1756438919450,7.64,216.64,216.53,7.65]
[1756438919652,2.46476919,216.63,216.55,7.65]
[1756438919852,2.46476919,216.62,216.55,7.65]
[1756438920153,0.03026228,216.61,216.55,7.65]
[1756438921946,0.03026228,216.61,216.52,5.13199807]
[1756438921947,10.10480366,216.6,216.52,5.13199807]
[1756438922258,2.46498087,216.59,216.51,12.78199807]
[1756438922553,7.64,216.6,216.51,12.78199807]
[1756438922748,2.46498788,216.59,216.51,12.78199807]
[1756438922949,2.46498818,216.58,216.51,12.78199807]
[1756438923150,7.64,216.6,216.51,5.13199807]
[1756438923350,2.46480382,216.59,216.52,7.65]
[1756438923558,7.64,216.6,216.52,12.78199807]
[1756438923750,0.03229033,216.58,216.52,7.65]
[1756438924651,7.64,216.82,216.58,7.65]
[1756438924850,2.46340142,216.81,216.72,2.57916832]
[1756438925051,2.57916832,216.87,216.76,7.65]
[1756438925252,7.64,216.88,216.79,7.65]
[1756438925451,2.57916832,216.87,216.8,8.83655393]
[1756438925651,2.57916832,216.87,216.81,8.83655393]
[1756438925846,0.80260154,216.95,216.82,8.83655393]
[1756438926047,2.57916832,216.94,216.84,7.65]
[1756438926253,2.57916832,216.94,216.85,8.83655393]
[1756438926554,9.72916832,216.94,216.87,0.03263988]
[1756438926752,9.72916832,216.94,216.88,4.36082014]
[1756438926952,2.57916832,216.94,216.89,4.36082014]
[1756438927149,310.16,217.01,216.9,4.36082014]
[1756438927352,7.15,217.0,216.91,4.36082014]
[1756438927657,7.15,217.0,216.84,7.65]
[1756438927658,9.72916832,216.94,216.92,4.36082014]
[1756438927852,7.15,216.94,216.93,4.39078648]
[1756438928255,7.15,216.94,216.93,4.36082014]
[1756438929855,9.72916832,216.97,216.93,4.36082014]
[1756438930158,9.72916832,216.97,216.94,4.36082014]
[1756438930358,9.72916832,216.97,216.91,0.03363585]
[1756438930660,7.15,216.96,216.92,4.31264858]
[1756438930850,7.15,216.96,216.93,4.31264858]
[1756438931050,7.15,216.96,216.91,0.03363585]
[1756438931364,7.15,216.96,216.92,4.30659021]
[1756438931659,7.15,216.96,216.93,4.30659021]
[1756438931961,7.15,216.96,216.94,4.30659021]
[1756438932161,7.15,216.96,216.92,4.30216837]
[1756438932362,7.15,216.96,216.93,4.30216837]
[1756438932562,7.15,216.96,216.91,0.03363585]
[1756438932764,7.15,216.96,216.92,4.30539258]
[1756438933061,7.15,216.96,216.93,4.30539258]
[1756438933356,118.62,216.99,216.91,0.03363585]
[1756438933561,7.15,216.93,216.92,2.49305196]
[1756438933751,7.15,216.98,216.91,0.03363585]
[1756438933955,7.15,216.92,216.91,0.03363585]
[1756438934360,7.15,217.0,216.91,0.03363585]
[1756438934561,2.57916832,216.95,216.91,0.03363585]
[1756438935466,7.15,216.94,216.91,0.03363585]
[1756438935660,2.57916832,216.95,216.91,0.03363585]
[1756438936361,9.72916832,216.92,216.8,7.0]
[1756438937064,69.5,216.91,216.8,7.0]
[1756438937258,7.15,216.88,216.75,7.0]
[1756438937458,7.15,216.88,216.75,9.57916832]
[1756438937669,0.03406726,216.84,216.75,9.57916832]
[1756438939261,0.03406726,216.84,216.79,7.0]
[1756438939463,0.03406726,216.84,216.78,2.57916832]
[1756438939863,0.03406726,216.84,216.78,9.57916832]
[1756438940458,0.03406726,216.84,216.78,7.0]
[1756438940662,0.03406726,216.84,216.75,2.57916832]
[1756438940972,0.03406726,216.84,216.74,7.0]
[1756438942163,0.03406726,216.84,216.77,7.0]
[1756438942370,0.03406726,216.84,216.77,9.57916832]
[1756438942967,0.03406726,216.84,216.78,7.0]
[1756438945158,0.03406726,216.84,216.71,4.05375508]
[1756438945363,0.03406726,216.84,216.73,7.0]
[1756438945767,0.03406726,216.84,216.71,4.05375508]
[1756438945768,0.03406726,216.84,216.76,0.03077134]
[1756438945963,0.03406726,216.84,216.77,4.26725919]
[1756438946163,0.03406726,216.84,216.78,11.26725919]
[1756438946363,0.03406726,216.84,216.8,7.0]
[1756438946565,0.03406726,216.84,216.81,11.26725919]
[1756438946770,0.03406726,216.84,216.82,4.26725919]
[1756438946970,0.03406726,216.84,216.77,4.26725919]
[1756438947268,0.03406726,216.84,216.78,4.26725919]
[1756438947466,0.03406726,216.84,216.79,11.26725919]
[1756438947668,0.03406726,216.84,216.8,4.26725919]
[1756438947867,0.03406726,216.84,216.81,4.26725919]
[1756438948166,0.03406726,216.84,216.82,4.26725919]
[1756438948468,0.03406726,216.84,216.83,4.26725919]
[1756438948766,0.03406726,216.84,216.8,11.26725919]
[1756438948965,0.03406726,216.84,216.81,4.26725919]
[1756438949160,0.03406726,216.84,216.82,4.26725919]
[1756438949359,0.03406726,216.84,216.83,4.26725919]
[1756438951471,7.18406726,216.84,216.83,4.26725919]
[1756438951871,7.18406726,216.84,216.77,4.26725919]
[1756438952071,7.18406726,216.84,216.78,4.26725919]
[1756438952267,0.03406726,216.84,216.79,4.26725919]
[1756438952471,0.03406726,216.84,216.8,4.26725919]
[1756438952674,0.03406726,216.84,216.82,7.0]
[1756438952874,0.03406726,216.84,216.83,4.26725919]
[1756438953977,0.03406726,216.84,216.83,11.2738012]
[1756438954573,0.03406726,216.84,216.83,11.27559259]
[1756438955268,0.03406726,216.84,216.83,4.27559259]
[1756438955879,0.03406726,216.84,216.83,11.27559259]
[1756438957679,0.03406726,216.84,216.83,4.27559259]
[1756438958476,7.61406726,216.84,216.83,4.27559259]
[1756438958683,0.03406726,216.84,216.83,4.27559259]
[1756438959181,0.03406726,216.84,216.83,11.94559259]
[1756438959577,0.03406726,216.84,216.83,7.67]
[1756438964286,11.63375508,216.96,216.83,7.67]
[1756438965082,7.58,216.96,216.83,7.67]
[1756438965283,7.58,216.96,216.83,3.82548238]
[1756438965585,7.58,216.96,216.87,7.70336069]
[1756438967388,109.86,217.03,216.87,7.70336069]
[1756438967689,10.15089405,217.0,216.89,7.67]
[1756438968088,10.15089405,217.0,216.92,0.03284399]
[1756438968290,2.57089405,216.94,216.92,0.03284399]
[1756438968485,7.58,216.93,216.92,0.03284399]
[1756438970486,8.04,216.93,216.92,0.03284399]
[1756438970692,7.58,216.92,216.83,11.49548238]
[1756438970893,10.15089405,216.92,216.83,11.49548238]
[1756438971592,7.58,216.92,216.83,11.49548238]
[1756438971892,0.03339103,216.9,216.83,11.49548238]
[1756438975694,0.03339103,216.9,216.84,3.82548238]
[1756438978000,10.15089405,216.89,216.85,0.03277374]
[1756438978194,2.57089405,216.89,216.85,0.03277374]
[1756438978500,10.15089405,216.86,216.85,0.03277374]
[1756438979397,10.61089405,216.86,216.85,0.03277374]
[1756438979597,10.15089405,216.86,216.85,0.03277374]
[1756438980894,10.61089405,216.86,216.75,3.82548238]
[1756438981094,10.15089405,216.81,216.74,11.49548238]
[1756438981396,10.15089405,216.81,216.74,7.67]
[1756438981795,10.15089405,216.81,216.74,11.49548238]
[1756438982197,0.03007864,216.8,216.74,11.49548238]
[1756438982399,0.03007864,216.8,216.74,7.67]
[1756438982597,7.40575295,217.0,216.79,5.1417881]
[1756438982902,7.58,217.08,216.95,7.67]
[1756438983100,2.57089405,217.02,216.95,7.67]
[1756438983296,2.57089405,217.03,216.96,4.31174777]
[1756438983494,2.57089405,217.03,216.97,4.31174777]
[1756438983791,10.15089405,217.03,216.98,4.31174777]
[1756438983996,0.02955148,217.02,216.99,4.31174777]
[1756438984300,0.02955148,217.02,217.0,4.31174777]
[1756438984498,0.02955148,217.02,217.01,4.30911685]
[1756438985199,8.06955148,217.02,217.01,4.30911685]
[1756438986297,7.60955148,217.02,217.01,4.30911685]
[1756438986699,0.02955148,217.02,217.01,4.30911685]
[1756438987294,0.02955148,217.02,217.01,11.76911685]
[1756438987997,0.02955148,217.02,217.01,4.30911685]
[1756438989095,0.02955148,217.02,217.01,11.76911685]
[1756438991400,7.38,217.23,217.02,7.46]
[1756438991599,7.38,217.2,217.05,7.46]
[1756438991806,7.38,217.2,217.06,4.30911685]
[1756438992000,7.38,217.2,217.05,7.46]
[1756438992001,7.38,217.2,217.08,7.46]
[1756438992197,7.38,217.2,217.09,4.30911685]
[1756438992399,7.38,217.2,217.1,4.30911685]
[1756438992607,7.38,217.2,217.11,4.30911685]
[1756438992904,7.38,217.2,217.12,4.30911685]
[1756438993100,7.38,217.2,217.13,4.30911685]
[1756438993299,4.04993489,217.18,217.14,4.30911685]
[1756438993496,4.04993489,217.18,217.15,4.30911685]
[1756438993695,4.04993489,217.18,217.14,0.02907219]
[1756438993696,4.04993489,217.18,217.16,4.30911685]
[1756438993904,7.38,217.21,217.14,0.02907219]
[1756438994105,7.38,217.25,217.16,7.46]
[1756438994305,4.04993489,217.23,217.17,4.3767381]
[1756438994509,4.04993489,217.23,217.18,11.8367381]
[1756438994708,4.04993489,217.23,217.19,4.3767381]
[1756438994907,7.38,217.22,217.13,7.46]
[1756438995108,7.38,217.22,217.14,4.3694596]
[1756438995310,7.38,217.22,217.15,4.3694596]
[1756438995505,7.38,217.2,217.16,4.3694596]
[1756438995707,11.42993489,217.21,217.11,7.46]
[1756438996111,11.42993489,217.21,217.12,4.36592048]
[1756438996310,11.42993489,217.21,217.13,4.36592048]
[1756438996500,11.42993489,217.21,217.14,4.36592048]
[1756438996706,11.42993489,217.17,217.11,7.46]
[1756438996901,7.38,217.16,217.15,0.02980535]
[1756438997410,7.38,217.16,217.07,7.46]
[1756438997613,7.38,217.16,217.08,4.36206099]
[1756438997814,7.38,217.16,217.09,4.36206099]
[1756438998010,4.04993489,217.17,217.1,4.36206099]
[1756438998202,4.04993489,217.17,217.0,14.22993489]
[1756438998203,4.04993489,217.17,217.11,11.82206099]
[1756438998410,4.04993489,217.17,217.13,7.46]
[1756438998713,4.04993489,217.17,217.14,4.36206099]
[1756438998911,4.04993489,217.17,217.15,4.36206099]
[1756438999211,4.04993489,217.17,217.13,7.46]
[1756438999212,4.04993489,217.17,217.16,4.36206099]
[1756438999412,4.04993489,217.17,217.14,4.36206099]
[1756438999712,4.04993489,217.17,217.15,4.36206099]
[1756438999909,10.98,217.23,217.09,7.46]
[1756439000110,4.04993489,217.19,217.1,4.35961342]
[1756439000308,4.04993489,217.15,217.11,4.35961342]
[1756439000507,13.87,217.31,217.12,4.35961342]
[1756439000703,4.04993489,217.22,217.13,4.35961342]
[1756439000907,4.04993489,217.22,217.14,4.35961342]